bitfinex/quotes_SOLUSD_20250929
["timestamp","ask_amount","ask_price","bid_price","bid_amount"]
[1759157148517,0.1,211.9,211.85,0.67]
[1759157148921,0.1,211.9,211.84,38.72]
[1759157149238,0.78,211.9,211.84,38.72]
[1759157149829,0.78,211.9,211.8,0.67]
[1759157149830,0.68,211.89,211.8,0.67]
[1759157150031,0.68,211.89,211.81,38.64]
[1759157150226,0.1,211.9,211.8,0.67]
[1759157150424,0.68,211.88,211.81,38.64]
[1759157152019,0.69,211.87,211.73,4.72299626]
[1759157152221,0.69,211.86,211.77,0.7]
[1759157152427,0.69,211.87,211.77,0.7]
[1759157153424,0.69,211.87,211.74,38.62]
[1759157153425,26.0,211.83,211.74,0.7]
[1759157153624,0.69,211.82,211.74,0.7]
[1759157155934,26.0,211.83,211.74,5.42274434]
[1759157156220,26.0,211.83,211.75,0.7]
[1759157156414,0.69,211.85,211.75,0.7]
[1759157156843,0.69,211.85,211.75,5.42243054]
[1759157157029,0.69,211.85,211.76,0.7]
[1759157160021,0.69,211.85,211.76,5.42228783]
[1759157160224,0.69,211.85,211.77,0.7]
[1759157160857,26.0,211.86,211.77,0.7]
[1759157161023,26.0,211.86,211.78,4.72188119]
[1759157161225,26.0,211.86,211.79,0.7]
[1759157161435,26.69,211.86,211.79,0.7]
[1759157161844,30.12848916,211.86,211.76,79.3]
[1759157162156,0.69,211.85,211.76,84.02226958]
[1759157162322,0.69,211.85,211.77,0.7]
[1759157162843,26.69,211.86,211.77,0.7]
[1759157163143,26.69,211.86,211.78,4.72188119]
[1759157163454,0.69,211.89,211.79,0.7]
[1759157163742,0.69,211.89,211.8,38.4]
[1759157164151,0.69,211.89,211.8,39.1]
[1759157164637,0.69,211.89,211.81,0.7]
[1759157164846,0.1,211.9,211.81,0.7]
[1759157165030,0.1,211.9,211.82,4.72098951]
[1759157165234,26.1,211.9,211.83,0.7]
[1759157165734,0.1,211.9,211.83,0.7]
[1759157167036,0.1,211.9,211.84,4.7205438]
[1759157167231,0.1,211.9,211.85,0.7]
[1759157167934,0.79,211.9,211.81,18.31680641]
[1759157168247,0.1,211.9,211.83,0.7]
[1759157169268,0.1,211.9,211.84,4.7205438]
[1759157169570,0.1,211.9,211.85,0.7]
[1759157169942,0.1,211.9,211.86,0.7]
[1759157170157,0.1,211.9,211.87,0.7]
[1759157170540,0.1,211.9,211.84,0.7]
[1759157170938,3.43848916,211.89,211.82,0.7]
[1759157171660,0.1,211.9,211.82,0.7]
[1759157171857,0.1,211.9,211.82,5.42096292]
[1759157172048,0.1,211.9,211.83,0.7]
[1759157173263,0.1,211.9,211.84,4.7205438]
[1759157173434,0.1,211.9,211.85,0.7]
[1759157173635,0.1,211.9,211.86,0.72]
[1759157174663,0.1,211.9,211.81,30.11974391]
[1759157174864,0.1,211.9,211.84,0.72]
[1759157175749,0.1,211.9,211.84,38.96]
[1759157175969,0.1,211.9,211.85,0.72]
[1759157176167,0.1,211.9,211.86,0.72]
[1759157176561,0.1,211.9,211.87,0.72]
[1759157176758,0.1,211.9,211.84,42.96053526]
[1759157176966,0.1,211.9,211.85,0.72]
[1759157177270,0.1,211.9,211.86,0.72]
[1759157177968,3.26001594,211.9,211.84,38.96]
[1759157178155,0.7,211.89,211.84,38.96]
[1759157178347,3.16001594,211.89,211.85,0.72]
[1759157178658,0.1,211.9,211.85,0.72]
[1759157179245,0.1,211.9,211.86,0.72]
[1759157179474,0.7,211.89,211.82,5.44078209]
[1759157179678,0.7,211.88,211.81,4.72120444]
[1759157179982,3.8700154,211.88,211.82,38.16]
[1759157180154,0.7,211.88,211.82,38.16]
[1759157180347,3.1700154,211.88,211.82,38.16]
[1759157180549,3.8700154,211.89,211.83,0.72]
[1759157180754,3.1700154,211.88,211.83,0.72]
[1759157181070,3.1700154,211.89,211.83,0.72]
[1759157181272,3.17300103,211.88,211.83,0.72]
[1759157181447,3.17300663,211.89,211.84,4.7205438]
[1759157181645,0.1,211.9,211.85,0.71]
[1759157181848,0.1,211.9,211.86,0.71]
[1759157182065,0.1,211.9,211.87,0.71]
[1759157182261,3.27273958,211.9,211.88,0.71]
[1759157182570,3.27273958,211.9,211.84,16.52190331]
[1759157182571,0.1,211.9,211.85,0.71]
[1759157182774,3.17412745,211.89,211.84,4.7205438]
[1759157183074,0.1,211.9,211.86,0.71]
[1759157183271,0.1,211.9,211.87,0.71]
[1759157183577,3.27367831,211.9,211.83,16.52261404]
[1759157183753,0.1,211.9,211.85,0.71]
[1759157183946,3.27367929,211.9,211.86,0.71]
[1759157184179,1.91363492,211.91,211.87,13.59559401]
[1759157184369,1.91363492,211.97,211.89,13.59559401]
[1759157184563,0.1,211.98,211.93,13.59559401]
[1759157184784,0.1,211.98,211.94,38.46]
[1759157185663,0.1,211.98,211.95,4.71809389]
[1759157185864,0.1,211.98,211.95,16.51332861]
[1759157186072,0.1,211.98,211.95,4.71809389]
[1759157188386,0.77,211.98,211.93,4.71834135]
[1759157188592,0.77,211.98,211.94,38.38]
[1759157188593,0.67,211.97,211.94,38.38]
[1759157188954,0.1,211.98,211.92,4.71875885]
[1759157189162,0.67,211.96,211.93,38.36]
[1759157189362,0.77,211.98,211.93,38.36]
[1759157189570,0.67,211.97,211.93,38.36]
[1759157190467,0.67,211.97,211.92,84.01875885]
[1759157190669,0.1,211.98,211.92,84.01875885]
[1759157190670,0.1,211.98,211.93,38.34]
[1759157191064,0.77,211.98,211.92,84.01875885]
[1759157191373,0.77,211.98,211.93,38.32]
[1759157191764,5.40840766,212.04,211.93,117.62]
[1759157191962,5.40840766,212.04,211.93,79.3]
[1759157192182,5.40840766,212.07,211.94,52.58559401]
[1759157192356,3.72021417,212.09,211.96,13.59559401]
[1759157192664,5.40840766,212.1,211.97,0.67]
[1759157192864,9.1648404,212.1,211.98,38.3]
[1759157193776,26.0,212.07,211.98,38.3]
[1759157193976,26.67,212.07,211.98,38.3]
[1759157194360,26.67,212.07,211.98,43.01724704]
[1759157194566,0.67,212.07,211.98,43.01724704]
[1759157195280,0.67,212.07,211.99,38.26]
[1759157196793,26.67,212.07,211.99,38.26]
[1759157196970,26.0,212.07,211.99,38.26]
[1759157197281,26.0,212.03,211.99,38.2]
[1759157197666,0.67,212.02,211.99,38.2]
[1759157197986,26.0,212.07,211.99,38.2]
[1759157198186,0.67,212.04,211.99,38.2]
[1759157198492,0.67,212.09,212.0,23.7207818]
[1759157198675,6.07840766,212.17,212.04,5.40840766]
[1759157198979,0.77,212.2,212.07,13.59559401]
[1759157199184,3.94848731,212.2,212.08,44.31840766]
[1759157199384,26.0,212.18,212.1,5.40840766]
[1759157199568,26.0,212.18,212.1,13.59559401]
[1759157199759,0.67,212.19,212.11,38.24]
[1759157199960,26.0,212.18,212.11,38.24]
[1759157200378,26.0,212.17,212.11,38.24]
[1759157200582,0.67,212.19,212.11,38.24]
[1759157200784,0.67,212.18,212.11,38.24]
[1759157201089,3.79165831,212.2,212.11,42.95452981]
[1759157201294,0.1,212.2,212.12,19.00400167]
[1759157201467,0.1,212.2,212.14,13.59559401]
[1759157201787,0.1,212.2,212.15,38.4]
[1759157201958,0.1,212.2,212.15,39.07]
[1759157202157,0.1,212.2,212.16,0.67]
[1759157202403,0.1,212.2,212.17,13.59559401]
[1759157202608,0.1,212.2,212.18,10.79116781]
[1759157203064,0.1,212.2,212.19,0.67]
[1759157203466,0.1,212.2,212.19,14.26559401]
[1759157204287,0.1,212.2,212.19,52.68559401]
[1759157204491,0.1,212.2,212.19,57.37835144]
[1759157204701,0.67,212.38,212.2,13.59559401]
[1759157204863,5.40840766,212.39,212.25,13.59559401]
[1759157204864,0.67,212.37,212.25,13.59559401]
[1759157205064,26.0,212.35,212.26,38.42]
[1759157205378,0.67,212.34,212.26,38.42]
[1759157205583,0.67,212.34,212.25,13.59559401]
[1759157205965,0.67,212.34,212.26,38.4]
[1759157206392,0.67,212.34,212.24,0.67]
[1759157206596,26.0,212.33,212.27,38.4]
[1759157206890,26.0,212.27,212.25,38.4]
[1759157207101,0.67,212.26,212.18,14.49013954]
[1759157207273,26.0,212.27,212.19,51.99559401]
[1759157207670,0.67,212.28,212.19,51.99559401]
[1759157207963,26.0,212.25,212.19,51.99559401]
[1759157208562,6.07840766,212.25,212.2,38.36]
[1759157208767,0.67,212.24,212.2,38.36]
[1759157209063,0.67,212.23,212.2,38.36]
[1759157209268,31.40840766,212.25,212.2,38.36]
[1759157209489,32.07840766,212.25,212.2,38.36]
[1759157209690,31.40840766,212.25,212.2,38.36]
[1759157209886,0.67,212.24,212.2,38.36]
[1759157210490,26.0,212.25,212.2,39.03]
[1759157210679,26.0,212.25,212.2,38.36]
[1759157211868,0.7,212.24,212.2,38.36]
[1759157212292,26.0,212.25,212.21,0.67]
[1759157212793,0.7,212.28,212.19,4.71273183]
[1759157212794,0.7,212.35,212.23,13.59559401]
[1759157212992,5.55266432,212.4,212.23,13.59559401]
[1759157212993,3.85697055,212.4,212.26,5.40840766]
[1759157213192,26.0,212.4,212.29,13.59559401]
[1759157213491,0.7,212.41,212.3,0.67]
[1759157213686,26.0,212.38,212.3,0.67]
[1759157215198,0.7,212.39,212.3,0.67]
[1759157215392,26.0,212.38,212.3,0.67]
[1759157215596,26.0,212.38,212.31,38.32]
[1759157215793,0.7,212.37,212.28,4.71054245]
[1759157215993,0.7,212.37,212.29,38.32]
[1759157216494,0.7,212.37,212.29,43.03046616]
[1759157217288,26.0,212.39,212.3,0.67]
[1759157218378,0.7,212.38,212.3,0.67]
[1759157218583,26.0,212.37,212.29,38.32]
[1759157218898,26.0,212.37,212.29,38.99]
[1759157219401,0.7,212.36,212.27,13.59559401]
[1759157219790,0.7,212.36,212.28,38.24]
[1759157220198,5.40840766,212.34,212.23,0.67]
[1759157220381,5.40840766,212.34,212.24,26.02]
[1759157220382,0.7,212.33,212.24,26.02]
[1759157220587,0.7,212.37,212.25,14.26559401]
[1759157220789,0.7,212.37,212.26,0.67]
[1759157221816,0.7,212.37,212.26,6.07840766]
[1759157222014,0.7,212.37,212.27,0.67]
[1759157222282,0.7,212.37,212.27,6.07840766]
[1759157222497,0.7,212.37,212.27,10.78933329]
[1759157224079,0.7,212.37,212.27,22.56678653]
[1759157224286,0.7,212.37,212.29,10.11878917]
[1759157224488,0.7,212.37,212.3,38.26]
[1759157224682,3.75340776,212.41,212.29,10.11878917]
[1759157224683,26.0,212.4,212.31,6.07840766]
[1759157224884,4.7063253,212.48,212.35,5.40840766]
[1759157225110,0.7,212.43,212.35,5.40840766]
[1759157225307,0.7,212.43,212.35,6.07840766]
[1759157225483,0.7,212.52,212.41,5.40840766]
[1759157225689,0.7,212.54,212.44,5.40840766]
[1759157226006,0.7,212.54,212.44,6.07840766]
[1759157226187,12.97515553,212.54,212.45,0.67]
[1759157226387,6.10840766,212.54,212.46,38.32]
[1759157226717,6.10840766,212.57,212.47,0.67]
[1759157227220,0.1,212.6,212.48,13.59559401]
[1759157227401,0.1,212.6,212.49,0.67]
[1759157227609,0.1,212.6,212.5,13.59559401]
[1759157227799,0.1,212.6,212.52,13.59559401]
[1759157227984,0.1,212.6,212.53,38.36]
[1759157228211,0.1,212.6,212.53,0.67]
[1759157228511,5.40840766,212.56,212.45,14.08424049]
[1759157228723,5.40840766,212.53,212.44,0.67]
[1759157228897,26.0,212.52,212.45,0.67]
[1759157229314,0.7,212.55,212.46,38.44]
[1759157229620,5.40840766,212.54,212.46,38.44]
[1759157229821,26.0,212.51,212.47,38.44]
[1759157230022,26.0,212.51,212.41,0.67]
[1759157230023,6.10840766,212.5,212.41,0.67]
[1759157230226,6.10840766,212.5,212.42,38.44]
[1759157230420,26.0,212.49,212.43,0.67]
[1759157230617,26.0,212.52,212.43,0.67]
[1759157231135,32.10840766,212.52,212.4,0.67]
[1759157231438,32.10840766,212.52,212.42,38.44]
[1759157231722,0.7,212.51,212.43,38.44]
[1759157233328,26.7,212.51,212.4,0.67]
[1759157233514,32.10840766,212.51,212.41,38.42]
[1759157233714,31.40840766,212.51,212.41,38.42]
[1759157233913,31.40840766,212.51,212.41,38.4]
[1759157233914,5.40840766,212.48,212.41,38.4]
[1759157234234,0.7,212.47,212.41,38.4]
[1759157234828,6.10840766,212.52,212.41,39.05]
[1759157235034,26.0,212.51,212.42,0.65]
[1759157235413,0.7,212.52,212.42,0.65]
[1759157235414,0.7,212.56,212.43,13.59559401]
[1759157235738,0.8,212.6,212.46,13.59559401]
[1759157235905,0.8,212.6,212.47,0.65]
[1759157236104,0.8,212.6,212.48,38.4]
[1759157236619,0.8,212.6,212.51,13.59559401]
[1759157236620,0.1,212.6,212.51,13.59559401]
[1759157236923,0.1,212.6,212.5,4.70588235]
[1759157236924,0.1,212.6,212.53,13.59559401]
[1759157237107,0.1,212.6,212.54,38.4]
[1759157237509,8.12902963,212.6,212.53,38.4]
[1759157237706,8.12902963,212.6,212.47,0.65]
[1759157237707,26.0,212.57,212.49,38.4]
[1759157238313,26.0,212.54,212.44,0.65]
[1759157238517,26.0,212.54,212.45,26.56]
[1759157238826,0.7,212.53,212.45,26.56]
[1759157239205,8.02902963,212.51,212.42,38.4]
[1759157239830,0.7,212.52,212.42,38.4]
[1759157240122,8.02902963,212.51,212.43,38.4]
[1759157240323,8.02902963,212.51,212.41,0.65]
[1759157240324,26.0,212.48,212.41,0.65]
[1759157240831,34.72902963,212.56,212.43,8.02902963]
[1759157241124,34.72902963,212.56,212.42,38.4]
[1759157241125,0.8,212.6,212.46,8.02902963]
[1759157241326,0.68,212.59,212.47,0.67]
[1759157241538,34.02902963,212.58,212.47,0.67]
[1759157241715,0.68,212.57,212.48,38.44]
[1759157242304,3.88364468,212.75,212.56,8.02902963]
[1759157242639,1.0,212.76,212.63,26.0]
[1759157242833,1.0,212.76,212.64,39.99]
[1759157243005,1.0,212.76,212.75,8.02902963]
[1759157243630,1.0,212.76,212.75,61.67462364]
[1759157243925,9.25465259,212.87,212.76,13.59559401]
[1759157244334,9.25465259,212.87,212.77,0.57]
[1759157244636,9.25465259,212.87,212.86,8.02902963]
[1759157245411,9.25465259,212.87,212.86,47.56902963]
[1759157245629,9.25465259,212.87,212.86,8.02902963]
[1759157245910,9.25465259,212.87,212.86,47.58902963]
[1759157246336,9.25465259,212.87,212.86,47.56902963]
[1759157246831,9.25465259,212.87,212.86,61.16462364]
[1759157247041,9.25465259,212.87,212.86,61.73462364]
[1759157247329,9.25465259,212.87,212.86,47.54902963]
[1759157248031,9.25465259,212.87,212.8,0.57]
[1759157248346,9.25465259,212.87,212.81,61.20462364]
[1759157248539,8.68465259,212.87,212.86,8.02902963]
[1759157248740,8.68465259,212.87,212.86,61.34462364]
[1759157249442,8.68465259,212.87,212.86,53.33559401]
[1759157249736,8.68465259,212.87,212.86,53.31559401]
[1759157249917,7.68465259,212.87,212.86,39.74]
[1759157250107,7.68465259,212.87,212.75,41.67122267]
[1759157250437,7.68465259,212.87,212.74,33.9]
[1759157250438,8.70902963,212.86,212.76,39.72]
[1759157250733,0.68,212.85,212.77,39.74]
[1759157250940,8.02902963,212.84,212.68,59.9]
[1759157251119,0.68,212.85,212.7,13.59559401]
[1759157251433,0.68,212.85,212.72,13.59559401]
[1759157251613,8.02902963,212.84,212.72,13.59559401]
[1759157251811,0.68,212.85,212.72,13.59559401]
[1759157251812,0.68,212.85,212.74,13.59559401]
[1759157252011,0.68,212.85,212.76,13.59559401]
[1759157252416,0.68,212.85,212.77,39.72]
[1759157253038,7.68465259,212.87,212.78,13.59559401]
[1759157254624,7.68465259,212.87,212.8,13.59559401]
[1759157255129,7.68465259,212.87,212.82,13.59559401]
[1759157255310,7.68465259,212.87,212.83,39.64]
[1759157255514,7.68465259,212.87,212.84,39.64]
[1759157256224,7.68465259,212.87,212.85,39.62]
[1759157256427,7.68465259,212.87,212.82,13.59559401]
[1759157256629,7.68465259,212.87,212.79,8.02902963]
[1759157256818,7.68465259,212.87,212.84,13.59559401]
[1759157257718,7.68465259,212.87,212.85,39.58]
[1759157257719,0.68,212.86,212.85,39.58]
[1759157258040,7.68465259,212.87,212.85,39.58]
[1759157258212,7.68465259,212.87,212.78,13.59559401]
[1759157258416,7.68465259,212.87,212.79,39.56]
[1759157259416,7.68465259,212.87,212.81,13.59559401]
[1759157259729,7.68465259,212.87,212.79,13.59559401]
[1759157259936,0.68,212.86,212.76,8.02902963]
[1759157260253,0.68,212.86,212.77,53.11559401]
[1759157260421,7.68465259,212.87,212.77,53.11559401]
[1759157261628,7.68465259,212.87,212.79,8.02902963]
[1759157262013,7.68465259,212.87,212.77,39.52]
[1759157262218,8.36465259,212.87,212.79,13.59559401]
[1759157262445,8.36465259,212.87,212.85,1.0]
[1759157262737,7.68465259,212.87,212.85,1.0]
[1759157262919,7.68465259,212.87,212.86,39.46]
[1759157263116,8.36465259,212.87,212.85,40.68]
[1759157263321,0.68,212.86,212.85,40.68]
[1759157263713,0.68,212.86,212.85,1.0]
[1759157264420,0.68,212.86,212.68,33.9]
[1759157264421,26.0,212.83,212.68,0.7]
[1759157264617,8.02902963,212.74,212.64,0.7]
[1759157264821,0.68,212.73,212.64,32.36]
[1759157266731,5.38088922,212.73,212.62,14.45591326]
[1759157266948,5.38088922,212.73,212.63,39.78]
[1759157267126,5.38088922,212.73,212.61,0.7]
[1759157267323,5.38088922,212.73,212.64,39.78]
[1759157267324,0.68,212.73,212.64,39.78]
[1759157267528,0.68,212.73,212.64,40.48]
[1759157268249,0.68,212.73,212.64,0.7]
[1759157268435,8.70902963,212.73,212.65,39.76]
[1759157269144,6.85196134,212.82,212.65,39.76]
[1759157269145,0.68,212.8,212.66,14.29559401]
[1759157269342,8.02902963,212.79,212.68,13.59559401]
[1759157269853,0.68,212.78,212.68,13.59559401]
[1759157270039,0.68,212.78,212.68,0.7]
[1759157270240,0.68,212.83,212.68,0.7]
[1759157270650,26.0,212.81,212.68,0.7]
[1759157271037,31.37909695,212.81,212.68,0.7]
[1759157271339,34.70902963,212.81,212.7,13.59559401]
[1759157271848,39.40806106,212.81,212.73,1.0]
[1759157272032,39.40806106,212.81,212.74,39.7]
[1759157272236,0.69,212.8,212.74,39.7]
[1759157272535,8.71902963,212.83,212.74,39.7]
[1759157272840,7.68465259,212.87,212.75,13.59559401]
[1759157273039,8.71902963,212.86,212.75,14.28559401]
[1759157273353,0.69,212.86,212.77,13.59559401]
[1759157273536,8.02902963,212.85,212.77,13.59559401]
[1759157274232,8.02902963,212.85,212.78,0.69]
[1759157274657,7.68465259,212.87,212.78,0.69]
[1759157275455,8.37465259,212.87,212.78,0.69]
[1759157276531,7.68465259,212.87,212.79,13.59559401]
[1759157278442,8.00542151,212.84,212.8,39.56]
[1759157278645,8.00542151,212.84,212.81,39.56]
[1759157279046,8.00542151,212.84,212.77,0.69]
[1759157279444,8.00542151,212.84,212.78,39.54]
[1759157279647,16.3800741,212.87,212.78,39.54]
[1759157280278,15.6900741,212.87,212.79,39.54]
[1759157280440,8.00542151,212.8,212.77,39.54]
[1759157280753,0.69,212.79,212.77,39.54]
[1759157281659,12.70471311,212.8,212.73,1.0]
[1759157281863,8.00542151,212.77,212.73,1.0]
[1759157282247,0.69,212.76,212.73,1.0]
[1759157282878,8.00542151,212.77,212.73,1.0]
[1759157283052,8.00542151,212.74,212.73,1.0]
[1759157283253,8.69542151,212.74,212.73,1.0]
[1759157283572,13.39599497,212.74,212.73,1.0]
[1759157283874,21.40141648,212.74,212.62,39.48]
[1759157284170,8.00542151,212.63,212.62,39.48]
[1759157284353,8.00542151,212.63,212.57,0.89]
[1759157284547,8.00542151,212.61,212.57,0.2]
[1759157285180,0.69,212.68,212.58,0.69]
[1759157285470,0.69,212.74,212.6,13.59559401]
[1759157285648,0.69,212.73,212.61,0.69]
[1759157285851,8.00542151,212.75,212.62,13.59559401]
[1759157286065,0.69,212.75,212.63,40.19]
[1759157286262,12.27486683,212.8,212.63,40.19]
[1759157286263,0.69,212.8,212.64,14.28559401]
[1759157286488,8.00542151,212.79,212.65,0.69]
[1759157286664,8.69542151,212.83,212.66,13.59559401]
[1759157286853,8.69542151,212.83,212.68,13.59559401]
[1759157287049,8.00542151,212.8,212.7,13.59559401]
[1759157287254,8.00542151,212.8,212.71,40.27]
[1759157287953,8.00542151,212.8,212.71,0.69]
[1759157288152,12.70470133,212.8,212.72,39.58]
[1759157288557,8.00542151,212.74,212.73,39.56]
[1759157289284,8.69542151,212.74,212.64,0.69]
[1759157289448,8.00542151,212.7,212.68,39.56]
[1759157289648,8.00542151,212.7,212.64,0.69]
[1759157289872,8.00542151,212.7,212.65,39.5]
[1759157290285,8.69542151,212.7,212.61,0.69]
[1759157290466,8.69542151,212.7,212.65,39.56]
[1759157290467,8.00542151,212.7,212.65,39.56]
[1759157291167,0.69,212.69,212.65,39.56]
[1759157291356,8.00542151,212.7,212.65,39.56]
[1759157291747,0.69,212.69,212.65,39.56]
[1759157291954,8.00542151,212.7,212.61,0.69]
[1759157292154,8.00542151,212.76,212.63,13.59559401]
[1759157292364,8.00542151,212.76,212.65,13.59559401]
[1759157292677,8.00542151,212.76,212.66,0.69]
[1759157293571,8.00542151,212.76,212.67,39.5]
[1759157293970,12.70559295,212.76,212.66,0.69]
[1759157294167,8.00542151,212.73,212.68,39.5]
[1759157294365,3.14675526,212.79,212.7,13.59559401]
[1759157294567,8.00542151,212.79,212.71,0.7]
[1759157294764,8.66542151,212.82,212.71,0.7]
[1759157294965,0.66,212.86,212.72,13.59559401]
[1759157295166,8.00542151,212.85,212.73,0.7]
[1759157295780,0.66,212.86,212.74,13.59559401]
[1759157295968,8.00542151,212.85,212.69,13.59559401]
[1759157296288,5.36748366,212.84,212.75,0.7]
[1759157296575,6.02748366,212.84,212.76,37.1]
[1759157296777,6.02748366,212.84,212.69,13.59559401]
[1759157296984,5.36748366,212.81,212.71,0.7]
[1759157297575,5.36748366,212.81,212.71,90.14]
[1759157297576,5.36748366,212.78,212.71,90.14]
[1759157297993,10.06727207,212.78,212.71,50.0]
[1759157298164,5.36748366,212.75,212.71,50.0]
[1759157298370,5.36748366,212.72,212.71,50.0]
[1759157299463,6.02748366,212.72,212.71,50.0]
[1759157299884,10.72849907,212.72,212.71,50.0]
[1759157300793,6.02748366,212.72,212.71,50.0]
[1759157301090,5.36748366,212.72,212.71,50.0]
[1759157301266,5.36748366,212.75,212.71,50.69]
[1759157301468,0.69,212.81,212.72,40.09]
[1759157301774,5.36748366,212.8,212.72,40.09]
[1759157302889,5.36748366,212.77,212.72,40.09]
[1759157303267,5.36748366,212.77,212.73,0.69]
[1759157303868,5.36748366,212.74,212.71,50.0]
[1759157304102,5.36748366,212.74,212.72,39.34]
[1759157304289,5.36748366,212.8,212.72,40.03]
[1759157304465,5.36748366,212.8,212.73,14.28559401]
[1759157304671,5.36748366,212.8,212.74,0.69]
[1759157305082,5.36748366,212.8,212.71,50.69]
[1759157305296,5.36748366,212.77,212.72,39.34]
[1759157305588,5.36748366,212.77,212.71,50.0]
[1759157305787,5.36748366,212.77,212.72,39.34]
[1759157305989,5.36748366,212.8,212.72,40.03]
[1759157306494,5.36748366,212.8,212.73,0.18651]
[1759157307176,5.36748366,212.8,212.74,0.69]
[1759157308395,10.83342916,212.87,212.74,0.69]
[1759157308596,5.36748366,212.78,212.75,39.28]
[1759157308810,5.36748366,212.78,212.76,0.69]
[1759157308999,5.36748366,212.78,212.75,39.28]
[1759157309307,5.36748366,212.78,212.73,0.87651]
[1759157309474,5.36748366,212.75,212.74,39.3]
[1759157310166,5.36748366,212.75,212.73,0.18651]
[1759157310370,5.36748366,212.77,212.73,39.48651]
[1759157311276,6.05748366,212.77,212.73,39.48651]
[1759157311879,5.36748366,212.77,212.73,39.48651]
[1759157314405,5.36748366,212.77,212.73,40.17651]
[1759157314800,5.36748366,212.79,212.74,0.69]
[1759157315003,5.36748366,212.82,212.75,0.69]
[1759157315380,26.0,212.84,212.75,0.69]
[1759157315581,5.36748366,212.82,212.75,0.69]
[1759157316917,5.36748366,212.82,212.76,39.18]
[1759157317097,5.36748366,212.82,212.75,0.69]
[1759157317301,5.36748366,212.82,212.76,39.12]
[1759157317497,0.69,212.83,212.75,0.69]
[1759157317693,5.36748366,212.81,212.76,39.12]
[1759157317999,5.36748366,212.81,212.76,39.81]
[1759157318385,5.36748366,212.81,212.77,39.1]
[1759157318893,3.15046236,212.86,212.77,39.79]
[1759157319100,7.68465259,212.87,212.79,13.59559401]
[1759157319289,7.68465259,212.87,212.77,55.5496399]
[1759157319502,7.68465259,212.87,212.77,30.8021455]
[1759157319803,7.68465259,212.87,212.78,39.08]
[1759157320388,7.68465259,212.87,212.8,26.0]
[1759157320581,7.68465259,212.87,212.81,39.1]
[1759157320788,7.68465259,212.87,212.82,16.44582275]
[1759157321422,0.1,212.96,212.87,13.59559401]
[1759157321719,1.41370748,213.0,212.91,13.59559401]
[1759157321914,1.41370748,213.0,212.92,39.22]
[1759157322087,1.41370748,213.0,212.93,13.59559401]
[1759157322289,1.41370748,213.0,212.97,13.59559401]
[1759157322514,1e-08,213.07,213.06,39.59559401]
[1759157322702,1e-08,213.07,213.06,83.66910757]
[1759157323101,1e-08,213.07,213.06,44.28910757]
[1759157323300,4.97575546,213.29,213.06,105.0]
[1759157323603,4.97575546,213.29,212.97,4.44355292]
[1759157323604,5.36748366,213.07,213.03,39.44]
[1759157323808,0.69,213.06,213.04,39.44]
[1759157323991,0.69,213.1,213.04,39.5]
[1759157324190,6.05748366,213.13,213.04,39.5]
[1759157324793,0.69,213.12,213.04,39.5]
[1759157325301,5.36748366,213.1,212.98,13.59559401]